fUST/lending_fUST_20240630
["ID","MTS","AMOUNT","RATE_DAILY","PERIOD"]
[330712416,1719724243168,-500.0,0.00016438,2]
[330712418,1719724243178,-501.9053898,0.00016438,2]
[330712420,1719724243188,-518.73,0.00016438,2]
[330712422,1719724243197,-3088.84,0.00016438,2]
[330712424,1719724243206,-500.0,0.00016438,2]
[330712426,1719724243215,-1865.16,0.00016438,2]
[330712428,1719724243224,-728.09,0.00016438,2]
[330712430,1719724243233,-500.0,0.00016438,2]
[330712432,1719724243242,-500.0,0.00016438,2]
[330712433,1719724243251,-1226.32,0.00016438,2]
[330712435,1719724243260,-500.0,0.00016438,2]
[330712437,1719724243270,-4938.1,0.00016438,2]
[330712440,1719724243281,-500.0,0.00016438,2]
[330712442,1719724243290,-502.60302224,0.00016438,2]
[330712444,1719724243299,-10819.74,0.00016438,2]
[330712445,1719724243308,-1763.97,0.00016438,2]
[330712447,1719724243317,-500.0,0.00016438,2]
[330712449,1719724243326,-1122.76,0.00016438,2]
[330712451,1719724243338,-1704.09,0.00016438,2]
[330712452,1719724243348,-683.48,0.00016438,2]
[330712453,1719724243357,-500.0,0.00016438,2]
[330712454,1719724243367,-157.85969961,0.00016438,2]
[330712455,1719724243379,-625.34,0.00016438,2]
[330712456,1719724243389,-2073.23,0.00016438,2]
[330712457,1719724243398,-576.1,0.00016438,2]
[330712458,1719724243407,-500.0,0.00016438,2]
[330712459,1719724243417,-1385.73,0.00016438,2]
[330712460,1719724243427,-756.99,0.00016438,2]
[330712462,1719724243436,-2404.95,0.00016438,2]
[330712463,1719724243445,-2487.34,0.00016438,2]
[330712464,1719724243455,-500.0,0.00016438,2]
[330712465,1719724243464,-19211.54713467,0.00016438,2]
[330712466,1719724243508,-21433.37098646,0.00016438,2]
[330712469,1719724243955,-5489.30187887,0.00016438,2]
[330712470,1719724243964,-387.1192327,0.00016438,2]
[330712471,1719724243976,-365.90340967,0.00016438,2]
[330712491,1719724398970,948.35061402,0.00015,2]
[330712492,1719724409941,948.35061402,0.00015,2]
[330712493,1719724422898,155.71654691,0.00014999,2]
[330712494,1719724627565,869.79610735,0.00014999,2]
[330712495,1719724851721,500.0,0.00015,2]
[330712496,1719724855027,500.0,0.00014,2]
[330712497,1719724858164,500.0,0.00013,2]
[330712503,1719725243942,1.11084047,0.00026,120]
[330712504,1719725339852,500.0,0.00015,2]
[330712540,1719725432669,-612.9563176,0.00015093,2]
[330712542,1719725432679,-346.87873083,0.00015177,2]
[330712544,1719725432688,-180.0,0.00015277,2]
[330712546,1719725432697,-300.0,0.00015277,2]
[330712548,1719725432706,-19791.10767448,0.00015278,2]
[330712550,1719725432718,-1193.72138822,0.00015278,2]
[330712834,1719725436268,24900.0,0.00014827,2]
[330712853,1719725438082,-500.0,0.000155,2]
[330712855,1719725438096,-297.17277758,0.00015756,2]
[330712857,1719725438110,-836.07142611,0.00015756,2]
[330712859,1719725438120,-15755.42192801,0.00015757,2]
[330712862,1719725438154,-1300.69393134,0.00015757,2]
[330712864,1719725438164,-1159.62289597,0.00015757,2]
[330712866,1719725438176,-18252.90052314,0.00015757,2]
[330712868,1719725438186,-153.0,0.000158,2]
[330712869,1719725438195,-153.0,0.000158,2]
[330712871,1719725438205,-323.78291371,0.00015995,2]
[330712873,1719725438215,-500.0,0.00016,2]
[330712875,1719725438225,-153.0,0.00016,2]
[330712877,1719725438235,-186.2096287,0.00016,2]
[330712878,1719725438245,-153.0,0.00016,2]
[330712879,1719725438254,-153.0,0.00016078,2]
[330712880,1719725438264,-295.93241606,0.000161,2]
[330712881,1719725438274,-206.0005558,0.000162,2]
[330712882,1719725438284,-150.0,0.00016212,2]
[330712883,1719725438294,-153.0,0.00016269,2]
[330712884,1719725438304,-153.0,0.00016269,2]
[330712885,1719725438314,-153.0,0.00016269,2]
[330712886,1719725438324,-22471.6586015,0.00016338,2]
[330712887,1719725438335,-4482.62052316,0.00016338,2]
[330712888,1719725438344,-1679.99563744,0.00016338,2]
[330712889,1719725438354,-786.90428379,0.00016338,2]
[330712890,1719725438364,-5023.357359,0.000164,2]
[330712891,1719725438374,-153.0,0.000164,2]
[330712892,1719725438385,-153.0,0.000164,2]
[330712893,1719725438395,-153.0,0.000164,2]
[330712894,1719725438405,-153.0,0.000164,2]
[330712895,1719725438416,-153.0,0.000164,2]
[330712896,1719725438425,-153.0,0.000164,2]
[330712897,1719725438438,-153.0,0.000164,2]
[330712898,1719725438448,-153.0,0.000164,2]
[330712899,1719725438457,-503.62112711,0.00016438,2]
[330712900,1719725438467,-506.0555363,0.00016438,2]
[330712901,1719725438478,-500.0,0.00016438,2]
[330712902,1719725438488,-2035.14,0.00016438,2]
[330712903,1719725438498,-1767.35,0.00016438,2]
[330712904,1719725438507,-559.33,0.00016438,2]
[330712905,1719725438519,-500.0,0.00016438,2]
[330712906,1719725438530,-500.0,0.00016438,2]
[330712907,1719725438540,-756.99,0.00016438,2]
[330712908,1719725438550,-500.0,0.00016438,2]
[330712909,1719725438559,-500.0,0.00016438,2]
[330712910,1719725438569,-500.0,0.00016438,2]
[330712911,1719725438579,-506.58658053,0.00016438,2]
[330712912,1719725438589,-500.0,0.00016438,2]
[330712913,1719725438598,-15282.11,0.00016438,2]
[330712914,1719725438608,-500.0,0.00016438,2]
[330712915,1719725438620,-500.0,0.00016438,2]
[330712916,1719725438631,-200.77325294,0.00016438,2]
[330712917,1719725438640,-500.0,0.00016438,2]
[330712918,1719725438652,-576.88372015,0.00016438,2]
[330712919,1719725438662,-705.42,0.00016438,2]
[330712920,1719725438671,-500.0,0.00016438,2]
[330712921,1719725438681,-500.0,0.00016438,2]
[330712922,1719725438690,-500.0,0.00016438,2]
[330712923,1719725438700,-597.72,0.00016438,2]
[330712924,1719725438710,-1172.41,0.00016438,2]
[330712925,1719725438719,-503.25470798,0.00016438,2]
[330712926,1719725438729,-500.0,0.00016438,2]
[330712927,1719725438739,-500.0,0.00016438,2]
[330712928,1719725438748,-513.11733545,0.00016438,2]
[330712929,1719725438758,-500.0,0.00016438,2]
[330712930,1719725438768,-382.69751023,0.00016438,2]
[330712931,1719725438778,-722.55,0.00016438,2]
[330712932,1719725438788,-500.0,0.00016438,2]
[330712933,1719725438798,-500.0,0.00016438,2]
[330712934,1719725438807,-500.0,0.00016438,2]
[330712935,1719725438817,-500.0,0.00016438,2]
[330712936,1719725438827,-936.14,0.00016438,2]
[330712937,1719725438836,-505.59809707,0.00016438,2]
[330712938,1719725438846,-500.0,0.00016438,2]
[330712939,1719725438856,-508.97045269,0.00016438,2]
[330712940,1719725438866,-500.0,0.00016438,2]
[330712941,1719725438875,-500.0,0.00016438,2]
[330712942,1719725438885,-501.70799239,0.00016438,2]
[330712943,1719725438894,-500.0,0.00016438,2]
[330712944,1719725438904,-11933.13,0.00016438,2]
[330712945,1719725438914,-674.57,0.00016438,2]
[330712946,1719725438924,-501.20225164,0.00016438,2]
[330712947,1719725438934,-3434.66,0.00016438,2]
[330712948,1719725438945,-500.0,0.00016438,2]
[330712949,1719725438955,-500.0,0.00016438,2]
[330712950,1719725438965,-500.0,0.00016438,2]
[330712951,1719725438975,-500.0,0.00016438,2]
[330712952,1719725438984,-500.0,0.00016438,2]
[330712953,1719725438994,-818.01,0.00016438,2]
[330712954,1719725439004,-501.67703648,0.00016438,2]
[330712955,1719725439016,-500.0,0.00016438,2]
[330712956,1719725439026,-500.0,0.00016438,2]
[330712957,1719725439036,-500.0,0.00016438,2]
[330712958,1719725439047,-588.07,0.00016438,2]
[330712959,1719725439057,-494.74240555,0.00016438,2]
[330712960,1719725439068,-728.68,0.00016438,2]
[330712961,1719725439078,-982.52,0.00016438,2]
[330712962,1719725439089,-500.0,0.00016438,2]
[330712963,1719725439099,-500.0,0.00016438,2]
[330712964,1719725439111,-500.0,0.00016438,2]
[330712965,1719725439122,-500.0,0.00016438,2]
[330712966,1719725439251,-500.0,0.00016438,2]
[330712967,1719725439261,-594.27,0.00016438,2]
[330712968,1719725439271,-500.0,0.00016438,2]
[330712969,1719725439282,-526.18308385,0.00016438,2]
[330712970,1719725439292,-550.43610066,0.00016438,2]
[330712971,1719725439302,-502.68202853,0.00016438,2]
[330712972,1719725439312,-502.32933308,0.00016438,2]
[330712973,1719725439322,-500.0,0.00016438,2]
[330712974,1719725439332,-500.0,0.00016438,2]
[330712975,1719725439341,-502.75853814,0.00016438,2]
[330712976,1719725439352,-500.0,0.00016438,2]
[330712977,1719725439362,-500.0,0.00016438,2]
[330712978,1719725439372,-500.0,0.00016438,2]
[330712979,1719725439384,-490.34845535,0.00016438,2]
[330712980,1719725439395,-506.19227959,0.00016438,2]
[330712981,1719725439405,-1764.0,0.00016438,2]
[330712982,1719725439414,-1764.0,0.00016438,2]
[330712983,1719725439424,-1764.0,0.00016438,2]
[330712984,1719725439434,-1272.77,0.00016438,2]
[330712985,1719725439447,-500.0,0.00016438,2]
[330712986,1719725439456,-1764.0,0.00016438,2]
[330712987,1719725439467,-1764.0,0.00016438,2]
[330712988,1719725439476,-1764.0,0.00016438,2]
[330712989,1719725439487,-1764.0,0.00016438,2]
[330712990,1719725439497,-1764.0,0.00016438,2]
[330712991,1719725439507,-500.0,0.00016438,2]
[330712992,1719725439516,-1764.0,0.00016438,2]
[330712993,1719725439526,-1764.0,0.00016438,2]
[330712994,1719725439536,-500.0,0.00016438,2]
[330712995,1719725439546,-1764.0,0.00016438,2]
[330712996,1719725439556,-1764.0,0.00016438,2]
[330712997,1719725439566,-1764.0,0.00016438,2]
[330712998,1719725439576,-1764.0,0.00016438,2]
[330712999,1719725439586,-513.74471728,0.00016438,2]
[330713001,1719725439596,-1764.0,0.00016438,2]
[330713002,1719725439606,-500.0,0.00016438,2]
[330713003,1719725439615,-500.0,0.00016438,2]
[330713004,1719725439626,-500.0,0.00016438,2]
[330713005,1719725439635,-500.0,0.00016438,2]
[330713006,1719725439645,-900.33,0.00016438,2]
[330713007,1719725439655,-1277.19,0.00016438,2]
[330713008,1719725439667,-501.7334312,0.00016438,2]
[330713009,1719725439676,-500.0,0.00016438,2]
[330713010,1719725439687,-500.0,0.00016438,2]
[330713011,1719725439697,-497.24081601,0.00016438,2]
[330713012,1719725439707,-500.0,0.00016438,2]
[330713013,1719725439719,-509.45315943,0.00016438,2]
[330713014,1719725439728,-1377.61,0.00016438,2]
[330713015,1719725439738,-1071.78,0.00016438,2]
[330713016,1719725439748,-642.72365021,0.00016438,2]
[330713017,1719725439758,-500.0,0.00016438,2]
[330713018,1719725439768,-500.0,0.00016438,2]
[330713019,1719725439778,-500.0,0.00016438,2]
[330713020,1719725439788,-500.0,0.00016438,2]
[330713023,1719725439799,-500.0,0.00016438,2]
[330713024,1719725439809,-500.0,0.00016438,2]
[330713026,1719725439819,-670.14,0.00016438,2]
[330713027,1719725439830,-500.0,0.00016438,2]
[330713028,1719725439840,-754.12,0.00016438,2]
[330713029,1719725439850,-500.0,0.00016438,2]
[330713031,1719725439860,-500.0,0.00016438,2]
[330713032,1719725439870,-614.86170782,0.00016438,2]
[330713034,1719725439881,-500.0,0.00016438,2]
[330713035,1719725439891,-500.0,0.00016438,2]
[330713036,1719725439901,-500.0,0.00016438,2]
[330713037,1719725439912,-352.42377064,0.00016438,2]
[330713038,1719725439922,-676.56,0.00016438,2]
[330713039,1719725439933,-1682.43,0.00016438,2]
[330713041,1719725439943,-500.0,0.00016438,2]
[330713042,1719725439953,-500.0,0.00016438,2]
[330713044,1719725439963,-850.91,0.00016438,2]
[330713046,1719725439974,-1404.62,0.00016438,2]
[330713048,1719725439984,-500.0,0.00016438,2]
[330713050,1719725439993,-500.0,0.00016438,2]
[330713052,1719725440004,-505.69048026,0.00016438,2]
[330713053,1719725440014,-800.87,0.00016438,2]
[330713055,1719725440024,-500.0,0.00016438,2]
[330713056,1719725440035,-500.0,0.00016438,2]
[330713057,1719725440045,-500.0,0.00016438,2]
[330713058,1719725440055,-2619.59,0.00016438,2]
[330713059,1719725440066,-500.0,0.00016438,2]
[330713060,1719725440076,-500.0,0.00016438,2]
[330713061,1719725440087,-500.0,0.00016438,2]
[330713062,1719725440097,-500.0,0.00016438,2]
[330713063,1719725440107,-500.0,0.00016438,2]
[330713064,1719725440118,-500.0,0.00016438,2]
[330713065,1719725440130,-283.41994305,0.00016438,2]
[330713067,1719725440140,-962.72,0.00016438,2]
[330713068,1719725440150,-548.5553125,0.00016438,2]
[330713069,1719725440160,-597.4,0.00016438,2]
[330713070,1719725440170,-500.0,0.00016438,2]
[330713071,1719725440180,-500.0,0.00016438,2]
[330713072,1719725440191,-500.0,0.00016438,2]
[330713073,1719725440201,-610.51,0.00016438,2]
[330713075,1719725440211,-500.0,0.00016438,2]
[330713076,1719725440221,-500.0,0.00016438,2]
[330713077,1719725440231,-793.71,0.00016438,2]
[330713078,1719725440242,-500.0,0.00016438,2]
[330713079,1719725440251,-356.35071583,0.00016438,2]
[330713080,1719725440262,-500.0,0.00016438,2]
[330713081,1719725440272,-3196.31,0.00016438,2]
[330713082,1719725440282,-500.0,0.00016438,2]
[330713083,1719725440292,-500.0,0.00016438,2]
[330713084,1719725440302,-500.0,0.00016438,2]
[330713085,1719725440312,-754.69,0.00016438,2]
[330713086,1719725440322,-605.53090476,0.00016438,2]
[330713087,1719725440332,-289.60180545,0.00016438,2]
[330713088,1719725440342,-961.87,0.00016438,2]
[330713089,1719725440352,-500.0,0.00016438,2]
[330713090,1719725440362,-500.0,0.00016438,2]
[330713091,1719725440372,-500.0,0.00016438,2]
[330713092,1719725440384,-500.0,0.00016438,2]
[330713093,1719725440395,-500.0,0.00016438,2]
[330713094,1719725440405,-500.0,0.00016438,2]
[330713096,1719725440415,-500.0,0.00016438,2]
[330713097,1719725440425,-500.0,0.00016438,2]
[330713098,1719725440436,-500.0,0.00016438,2]
[330713099,1719725440450,-500.0,0.00016438,2]
[330713100,1719725440460,-500.0,0.00016438,2]
[330713101,1719725440471,-500.0,0.00016438,2]
[330713102,1719725440482,-218.19903347,0.00016438,2]
[330713103,1719725440492,-500.0,0.00016438,2]
[330713104,1719725440503,-500.0,0.00016438,2]
[330713105,1719725440514,-500.0,0.00016438,2]
[330713106,1719725440527,-500.0,0.00016438,2]
[330713107,1719725440538,-500.0,0.00016438,2]
[330713108,1719725440548,-555.92,0.00016438,2]
[330713109,1719725440558,-500.0,0.00016438,2]
[330713110,1719725440569,-500.0,0.00016438,2]
[330713111,1719725440579,-500.0,0.00016438,2]
[330713112,1719725440589,-504.76597626,0.00016438,2]
[330713113,1719725440599,-500.74695994,0.00016438,2]
[330713114,1719725440610,-645.19,0.00016438,2]
[330713115,1719725440620,-1512.82,0.00016438,2]
[330713116,1719725440631,-500.0,0.00016438,2]
[330713117,1719725440641,-3739.56,0.00016438,2]
[330713118,1719725440651,-500.0,0.00016438,2]
[330713119,1719725440662,-500.0,0.00016438,2]
[330713120,1719725440672,-500.0,0.00016438,2]
[330713121,1719725440682,-500.0,0.00016438,2]
[330713122,1719725440692,-500.0,0.00016438,2]
[330713123,1719725440702,-500.0,0.00016438,2]
[330713124,1719725440712,-500.0,0.00016438,2]
[330713125,1719725440722,-188.09167626,0.00016438,2]
[330713126,1719725440733,-500.0,0.00016438,2]
[330713127,1719725440743,-1256.43,0.00016438,2]
[330713128,1719725440753,-506.07113532,0.00016438,2]
[330713129,1719725440763,-623.77,0.00016438,2]
[330713130,1719725440773,-508.10731312,0.00016438,2]
[330713131,1719725440783,-502.3572383,0.00016438,2]
[330713132,1719725440793,-711.91,0.00016438,2]
[330713133,1719725440803,-500.0,0.00016438,2]
[330713134,1719725440901,-500.0,0.00016438,2]
[330713135,1719725440912,-744.13,0.00016438,2]
[330713136,1719725440923,-500.0,0.00016438,2]
[330713137,1719725440933,-500.0,0.00016438,2]
[330713138,1719725440944,-546.67653894,0.00016438,2]
[330713139,1719725440954,-508.18186603,0.00016438,2]
[330713140,1719725440964,-560.18,0.00016438,2]
[330713141,1719725440974,-500.0,0.00016438,2]
[330713142,1719725440984,-500.0,0.00016438,2]
[330713143,1719725440994,-500.0,0.00016438,2]
[330713144,1719725441005,-500.0,0.00016438,2]
[330713145,1719725441015,-500.0,0.00016438,2]
[330713146,1719725441025,-19041.74,0.00016438,2]
[330713147,1719725441035,-500.0,0.00016438,2]
[330713148,1719725441046,-501.9053898,0.00016438,2]
[330713149,1719725441056,-501.72680499,0.00016438,2]
[330713150,1719725441067,-651.93,0.00016438,2]
[330713151,1719725441077,-500.0,0.00016438,2]
[330713152,1719725441087,-513.57,0.00016438,2]
[330713153,1719725441098,-697.61,0.00016438,2]
[330713154,1719725441108,-1754.19,0.00016438,2]
[330713155,1719725441118,-502.60302224,0.00016438,2]
[330713156,1719725441128,-501.00203503,0.00016438,2]
[330713157,1719725441137,-507.55763966,0.00016438,2]
[330713158,1719725441147,-500.0,0.00016438,2]
[330713159,1719725441158,-500.0,0.00016438,2]
[330713160,1719725441168,-356.11122265,0.00016438,2]
[330713161,1719725441178,-500.0,0.00016438,2]
[330713162,1719725441188,-500.0,0.00016438,2]
[330713163,1719725441198,-518.6968974,0.00016438,2]
[330713164,1719725441208,-515.09824929,0.00016438,2]
[330713165,1719725441217,-3242.34,0.00016438,2]
[330713166,1719725441227,-838.23,0.00016438,2]
[330713167,1719725441237,-1488.78,0.00016438,2]
[330713168,1719725441247,-728.09,0.00016438,2]
[330713169,1719725441257,-635.80447038,0.00016438,2]
[330713170,1719725441267,-963.57,0.00016438,2]
[330713171,1719725441276,-3921.99,0.00016438,2]
[330713172,1719725441286,-1034.21,0.00016438,2]
[330713173,1719725441295,-500.0,0.00016438,2]
[330713174,1719725441306,-500.0,0.00016438,2]
[330713175,1719725441316,-500.0,0.00016438,2]
[330713176,1719725441326,-500.0,0.00016438,2]
[330713177,1719725441336,-500.0,0.00016438,2]
[330713178,1719725441346,-500.0,0.00016438,2]
[330713179,1719725441355,-500.0,0.00016438,2]
[330713180,1719725441365,-500.0,0.00016438,2]
[330713181,1719725441375,-3478.08,0.00016438,2]
[330713182,1719725441385,-500.0,0.00016438,2]
[330713183,1719725441395,-500.0,0.00016438,2]
[330713184,1719725441405,-647.25,0.00016438,2]
[330713185,1719725441415,-504.43843048,0.00016438,2]
[330713186,1719725441426,-2964.06,0.00016438,2]
[330713187,1719725441436,-1288.1,0.00016438,2]
[330713188,1719725441448,-500.0,0.00016438,2]
[330713189,1719725441458,-541.28,0.00016438,2]
[330713190,1719725441468,-500.0,0.00016438,2]
[330713191,1719725441478,-500.0,0.00016438,2]
[330713192,1719725441488,-2049.93,0.00016438,2]
[330713193,1719725441497,-501.5096367,0.00016438,2]
[330713194,1719725441507,-683.48,0.00016438,2]
[330713195,1719725441516,-503.80395665,0.00016438,2]
[330713196,1719725441526,-627.36491239,0.00016438,2]
[330713197,1719725441536,-500.0,0.00016438,2]
[330713198,1719725441546,-11596.27,0.00016438,2]
[330713199,1719725441555,-453.7514208,0.00016438,2]
[330713200,1719725441564,-500.0,0.00016438,2]
[330713201,1719725441574,-500.0,0.00016438,2]
[330713202,1719725441583,-500.0,0.00016438,2]
[330713203,1719725441592,-852.01,0.00016438,2]
[330713204,1719725441602,-1122.76,0.00016438,2]
[330713205,1719725441611,-516.65,0.00016438,2]
[330713206,1719725441621,-500.0,0.00016438,2]
[330713207,1719725441631,-523.21322067,0.00016438,2]
[330713208,1719725441641,-625.34,0.00016438,2]
[330713209,1719725441651,-1993.28,0.00016438,2]
[330713210,1719725441662,-500.0,0.00016438,2]
[330713211,1719725441671,-500.0,0.00016438,2]
[330713212,1719725441681,-500.0,0.00016438,2]
[330713213,1719725441690,-503.33884486,0.00016438,2]
[330713214,1719725441700,-500.0,0.00016438,2]
[330713215,1719725441710,-370.21868496,0.00016438,2]
[330713216,1719725441720,-600.4,0.00016438,2]
[330713217,1719725441730,-500.0,0.00016438,2]
[330713218,1719725441740,-1938.97,0.00016438,2]
[330713219,1719725441750,-500.0,0.00016438,2]
[330713220,1719725441759,-504.25480397,0.00016438,2]
[330713221,1719725441769,-500.0,0.00016438,2]
[330713222,1719725441778,-500.0,0.00016438,2]
[330713223,1719725441788,-500.0,0.00016438,2]
[330713224,1719725441797,-550.02769491,0.00016438,2]
[330713225,1719725441807,-2504.72,0.00016438,2]
[330713226,1719725441816,-500.0,0.00016438,2]
[330713227,1719725441826,-909.73,0.00016438,2]
[330713228,1719725441835,-508.89228459,0.00016438,2]
[330713229,1719725441844,-500.0,0.00016438,2]
[330713230,1719725441854,-500.0,0.00016438,2]
[330713231,1719725441863,-517.27090328,0.00016438,2]
[330713232,1719725441872,-500.0,0.00016438,2]
[330713233,1719725441884,-500.0,0.00016438,2]
[330713234,1719725441893,-699.59,0.00016438,2]
[330713235,1719725441907,-500.0,0.00016438,2]
[330713236,1719725441916,-500.0,0.00016438,2]
[330713237,1719725441926,-500.0,0.00016438,2]
[330713238,1719725441935,-500.0,0.00016438,2]
[330713239,1719725441945,-1047.47,0.00016438,2]
[330713240,1719725441954,-500.0,0.00016438,2]
[330713241,1719725441963,-208.584817,0.00016438,2]
[330713242,1719725441973,-600.27,0.00016438,2]
[330713243,1719725441982,-746.24,0.00016438,2]
[330713244,1719725441991,-500.0,0.00016438,2]
[330713245,1719725442000,-525.72491005,0.00016438,2]
[330713246,1719725442011,-500.0,0.00016438,2]
[330713247,1719725442020,-500.0,0.00016438,2]
[330713248,1719725442030,-500.0,0.00016438,2]
[330713249,1719725442039,-1318.82,0.00016438,2]
[330713250,1719725442049,-811.63,0.00016438,2]
[330713251,1719725442058,-508.39491225,0.00016438,2]
[330713252,1719725442068,-600.36,0.00016438,2]
[330713253,1719725442078,-1075.04,0.00016438,2]
[330713254,1719725442088,-500.0,0.00016438,2]
[330713255,1719725442098,-1656.37,0.00016438,2]
[330713256,1719725442107,-501.16079115,0.00016438,2]
[330713257,1719725442117,-500.0,0.00016438,2]
[330713258,1719725442126,-500.0,0.00016438,2]
[330713259,1719725442135,-284.42713309,0.00016438,2]
[330713260,1719725442145,-1103.87,0.00016438,2]
[330713261,1719725442155,-510.23074069,0.00016438,2]
[330713262,1719725442164,-568.43,0.00016438,2]
[330713263,1719725442173,-500.0,0.00016438,2]
[330713264,1719725442182,-500.0,0.00016438,2]
[330713265,1719725442192,-3815.59,0.00016438,2]
[330713266,1719725442201,-2086.46,0.00016438,2]
[330713267,1719725442211,-500.0,0.00016438,2]
[330713268,1719725442220,-631.25,0.00016438,2]
[330713269,1719725442229,-500.0,0.00016438,2]
[330713270,1719725442238,-500.0,0.00016438,2]
[330713271,1719725442248,-151.0,0.00016438,2]
[330713272,1719725442257,-949.62,0.00016438,2]
[330713273,1719725442267,-501.53968215,0.00016438,2]
[330713274,1719725442363,-501.82408422,0.00016438,2]
[330713275,1719725442373,-500.0,0.00016438,2]
[330713276,1719725442384,-500.0,0.00016438,2]
[330713277,1719725442394,-503.08253813,0.00016438,2]
[330713278,1719725442403,-1895.02,0.00016438,2]
[330713279,1719725442413,-502.86841912,0.00016438,2]
[330713280,1719725442423,-504.21438087,0.00016438,2]
[330713281,1719725442432,-500.0,0.00016438,2]
[330713282,1719725442447,-500.0,0.00016438,2]
[330713283,1719725442457,-1113.83,0.00016438,2]
[330713284,1719725442467,-500.0,0.00016438,2]
[330713285,1719725442476,-1371.68,0.00016438,2]
[330713286,1719725442486,-1567.52,0.00016438,2]
[330713287,1719725442496,-538.00787098,0.00016438,2]
[330713288,1719725442505,-500.0,0.00016438,2]
[330713289,1719725442516,-3914.59,0.00016438,2]
[330713290,1719725442528,-572.42,0.00016438,2]
[330713291,1719725442538,-832.52,0.00016438,2]
[330713292,1719725442548,-1763.97,0.00016438,2]
[330713293,1719725442558,-24536.05,0.00016438,2]
[330713294,1719725442567,-500.0,0.00016438,2]
[330713295,1719725442576,-598.33,0.00016438,2]
[330713296,1719725442586,-610.56,0.00016438,2]
[330713297,1719725442595,-506.29147008,0.00016438,2]
[330713298,1719725442605,-500.0,0.00016438,2]
[330713299,1719725442616,-18335.36,0.00016438,2]
[330713300,1719725442625,-303.37565027,0.00016438,2]
[330713301,1719725442636,-500.0,0.00016438,2]
[330713302,1719725442646,-506.82,0.00016438,2]
[330713303,1719725442655,-500.0,0.00016438,2]
[330713304,1719725442664,-877.89,0.00016438,2]
[330713305,1719725442674,-501.08655905,0.00016438,2]
[330713306,1719725442684,-500.0,0.00016438,2]
[330713307,1719725442693,-521.84,0.00016438,2]
[330713308,1719725442703,-501.97196758,0.00016438,2]
[330713309,1719725442712,-500.0,0.00016438,2]
[330713312,1719725442722,-500.0,0.00016438,2]
[330713315,1719725442732,-500.0,0.00016438,2]
[330713317,1719725442742,-500.0,0.00016438,2]
[330713319,1719725442751,-500.0,0.00016438,2]
[330713322,1719725442760,-2593.85,0.00016438,2]
[330713324,1719725442770,-502.72826924,0.00016438,2]
[330713326,1719725442780,-4930.47,0.00016438,2]
[330713328,1719725442790,-543.63,0.00016438,2]
[330713330,1719725442800,-500.0,0.00016438,2]
[330713332,1719725442810,-1242.44,0.00016438,2]
[330713333,1719725442820,-1068.11,0.00016438,2]
[330713334,1719725442829,-814.4,0.00016438,2]
[330713335,1719725442839,-8820.53,0.00016438,2]
[330713336,1719725442849,-500.0,0.00016438,2]
[330713337,1719725442859,-500.0,0.00016438,2]
[330713338,1719725442868,-500.0,0.00016438,2]
[330713339,1719725442878,-500.0,0.00016438,2]
[330713340,1719725442888,-500.0,0.00016438,2]
[330713341,1719725442898,-500.0,0.00016438,2]